[Event "Turkish Club Cup 2019"]
[Site "Konya"]
[Date "2019.07.16"]
[Round "1"]
[White "Togrul, Ayberk"]
[Black "Atas, Yunus"]
[Result "1-0"]
[ECO "A04"]
[WhiteElo "1491"]
[BlackElo "1876"]
[Annotator "NA"]
[PlyCount "65"]
[EventDate "2019.07.16"]
[EventType "team-tourn"]
[EventCountry "TUR"]
[SourceTitle "playchess.com"]
[Source "ChessBase"]
[SourceQuality "1"]
[TimeControl "5400+30"]

1. Nf3 {[%emt 0:00:30]} c5 {[%emt 0:00:30]} 2. g3 {[%emt 0:00:30]} Nc6 {[%emt 0:00:30]} 3. Bg2 {[%emt 0:00:30]} g6 {[%emt 0:00:00]} 4. O-O {[%emt 0:00:30]} Bg7 {[%emt 0:00:00]} 5. d3 {[%emt 0:01:30]} e5 {[%emt 0:00:00]} 6. Be3 {[%emt 0:01:30]} e4 {[%emt 0:08:00]} 7. dxe4 {[%emt 0:02:30]} Bxb2 {[%emt 0:00:00]} 8. Nbd2 {[%emt 0:00:30]} Bxa1 {[%emt 0:00:00]} 9. Qxa1 {[%emt 0:00:00]} f6 {[%emt 0:05:30]} 10. Nc4 {[%emt 0:04:00]} d5 {[%emt 0:01:30]} 11. exd5 {[%emt 0:00:30]} Qxd5 {[%emt 0:00:30]} 12. Nfd2 {[%emt 0:04:30]} Qe6 {[%emt 0:05:30]} 13. Bxc5 {[%emt 0:01:30]} Nge7 {[%emt 0:02:30]} 14. Nd6+ {[%emt 0:00:30]} Kf8 {[%emt 0:00:30]} 15. Bxc6 {[%emt 0:00:30]} bxc6 {[%emt 0:00:00]} 16. N2e4 {[%emt 0:00:30]} Kg7 {[%emt 0:02:00]} 17. Nxf6 {[%emt 0:00:30]} Qxf6 {[%emt 0:58:18]} 18. Bd4 {[%emt 0:00:30]} Nd5 {[%emt 0:09:08]} 19. Bxf6+ {[%emt 0:00:30]} Nxf6 {[%emt 0:00:03]} 20. Qe5 {[%emt 0:01:30]} Rf8 {[%emt 0:00:54]} 21. Rd1 {[%emt 0:02:30]} Kg8 {[%emt 0:02:11]} 22. Rd4 {[%emt 0:06:30]} Ng4 {[%emt 0:01:09]} 23. Qe7 {[%emt 0:00:30]} Nh6 {[%emt 0:02:04]} 24. Rh4 {[%emt 0:01:30]} Nf7 {[%emt 0:00:32]} 25. Ne4 {[%emt 0:00:30]} h5 {[%emt 0:00:32]} 26. Nf6+ {[%emt 0:00:30]} Kg7 {[%emt 0:00:05]} 27. f3 {[%emt 0:01:30]} Ba6 {[%emt 0:00:38]} 28. g4 {[%emt 0:00:30]} Bxe2 {[%emt 0:00:50]} 29. gxh5 {[%emt 0:01:30]} g5 {[%emt 0:00:02]} 30. Rg4 {[%emt 0:01:30]} Bxf3 {[%emt 0:01:02]} 31. Rxg5+ {[%emt 0:00:30]} Kh8 {[%emt 0:00:02]} 32. Rg6 {[%emt 0:00:30]} Bd5 {[%emt 0:00:57]} 33. Rh6+ {[%emt 0:00:30]} 1-0

[Event "Turkish Club Cup 2019"]
[Site "Konya"]
[Date "2019.07.16"]
[Round "1"]
[White "Mertoglu, Huseyin"]
[Black "Urkmez, Ali Tuna"]
[Result "1-0"]
[ECO "A25"]
[WhiteElo "1461"]
[BlackElo "1273"]
[Annotator "NA"]
[PlyCount "93"]
[EventDate "2019.07.16"]
[EventType "team-tourn"]
[EventCountry "TUR"]
[SourceTitle "playchess.com"]
[Source "ChessBase"]
[SourceQuality "1"]
[TimeControl "5400+30"]

1. c4 {[%emt 0:00:30]} e5 {[%emt 0:02:30]} 2. Nc3 {[%emt 0:02:30]} Nf6 {[%emt 0:06:30]} 3. d3 {[%emt 0:00:00]} Bb4 {[%emt 0:00:30]} 4. Bd2 {[%emt 0:00:00]} Nc6 {[%emt 0:02:30]} 5. g3 {[%emt 0:00:30]} O-O {[%emt 0:04:30]} 6. Bg2 {[%emt 0:00:30]} d6 {[%emt 0:01:30]} 7. a3 {[%emt 0:00:30]} Bc5 {[%emt 0:03:30]} 8. Nf3 {[%emt 0:00:30]} Be6 {[%emt 0:05:30]} 9. Ng5 {[%emt 0:00:30]} Qd7 {[%emt 0:05:30]} 10. b4 {[%emt 0:00:30]} Bb6 {[%emt 0:03:30]} 11. O-O {[%emt 0:06:30]} Bg4 {[%emt 0:06:30]} 12. h3 {[%emt 0:00:30]} h6 {[%emt 0:07:30]} 13. hxg4 {[%emt 0:02:30]} hxg5 {[%emt 0:00:30]} 14. Bxg5 {[%emt 0:02:30]} Nxg4 {[%emt 0:01:30]} 15. e4 {[%emt 0:11:30]} f6 {[%emt 0:13:30]} 16. Bd2 {[%emt 0:00:30]} Nh6 {[%emt 0:05:30]} 17. Qh5 {[%emt 0:17:30]} Qg4 {[%emt 0:05:30]} 18. Qh1 {[%emt 0:00:30]} Kh7 {[%emt 0:01:30]} 19. Bh3 {[%emt 0:00:00]} Qxg3+ {[%emt 0:00:30]} 20. Bg2 {[%emt 0:00:00]} Nd4 {[%emt 0:01:35]} 21. Qh5 {[%emt 0:05:30]} Qg4 {[%emt 0:05:12]} 22. Qxg4 {[%emt 0:01:30]} Nxg4 {[%emt 0:00:07]} 23. a4 {[%emt 0:18:30]} a5 {[%emt 0:04:16]} 24. b5 {[%emt 0:03:30]} Nb3 {[%emt 0:03:57]} 25. Rad1 {[%emt 0:00:30]} Nxd2 {[%emt 0:00:04]} 26. Rxd2 {[%emt 0:00:30]} Ne3 {[%emt 0:00:23]} 27. fxe3 {[%emt 0:01:30]} Bxe3+ {[%emt 0:00:30]} 28. Rff2 {[%emt 0:00:00]} Bxd2 {[%emt 0:01:42]} 29. Rxd2 {[%emt 0:00:00]} Rh8 {[%emt 0:00:42]} 30. Nd5 {[%emt 0:00:00]} c6 {[%emt 0:00:41]} 31. bxc6 {[%emt 0:00:00]} bxc6 {[%emt 0:00:30]} 32. Ne7 {[%emt 0:00:30]} c5 {[%emt 0:00:12]} 33. Bh3 {[%emt 0:00:30]} Rae8 {[%emt 0:00:39]} 34. Bf5+ {[%emt 0:01:30]} Kh6 {[%emt 0:00:05]} 35. Rh2+ {[%emt 0:01:30]} Kg5 {[%emt 0:00:30]} 36. Rg2+ {[%emt 0:00:30]} Kh6 {[%emt 0:00:39]} 37. Rg6+ {[%emt 0:02:30]} Kh7 {[%emt 0:01:17]} 38. Rxf6+ {[%emt 0:02:30]} g6 {[%emt 0:01:15]} 39. Nxg6 {[%emt 0:01:42]} Kg7 {[%emt 0:05:21]} 40. Rxd6 Rh6 {[%emt 0:00:09]} 41. Rc6 {[%emt 0:02:13]} Rf8 {[%emt 0:01:30]} 42. Rc7+ {[%emt 0:01:10]} Rf7 {[%emt 0:00:04]} 43. Rxc5 {[%emt 0:00:19]} Rxg6+ {[%emt 0:01:18]} 44. Bxg6 {[%emt 0:00:30]} Kxg6 {[%emt 0:00:30]} 45. Rxe5 {[%emt 0:00:00]} Rf3 {[%emt 0:00:00]} 46. Rd5 {[%emt 0:00:02]} Rf7 {[%emt 0:01:22]} 47. Rxa5 {[%emt 0:00:30]} 1-0

[Event "Turkish Club Cup 2019"]
[Site "Konya"]
[Date "2019.07.16"]
[Round "1"]
[White "Kantar, Cihat Celaleddin"]
[Black "Celik, Faruk"]
[Result "1-0"]
[ECO "B45"]
[WhiteElo "1453"]
[BlackElo "1493"]
[Annotator "NA"]
[PlyCount "149"]
[EventDate "2019.07.16"]
[EventType "team-tourn"]
[EventCountry "TUR"]
[SourceTitle "playchess.com"]
[Source "ChessBase"]
[SourceQuality "1"]
[TimeControl "5400+30"]

1. e4 {[%emt 0:00:30]} c5 {[%emt 0:00:30]} 2. Nf3 {[%emt 0:00:30]} Nc6 {[%emt 0:00:00]} 3. d4 {[%emt 0:00:00]} cxd4 {[%emt 0:00:00]} 4. Nxd4 {[%emt 0:00:00]} e6 {[%emt 0:01:30]} 5. Nc3 {[%emt 0:05:30]} Bb4 {[%emt 0:00:30]} 6. Nb3 {[%emt 0:04:30]} Qh4 {[%emt 0:02:30]} 7. Bd3 {[%emt 0:02:30]} Ne5 {[%emt 0:01:30]} 8. Bd2 {[%emt 0:11:30]} a6 {[%emt 0:02:30]} 9. Qe2 {[%emt 0:08:30]} b5 {[%emt 0:05:30]} 10. a3 {[%emt 0:00:30]} Be7 {[%emt 0:00:30]} 11. Na5 {[%emt 0:08:30]} Nf6 {[%emt 0:01:30]} 12. O-O {[%emt 0:02:30]} Nfg4 {[%emt 0:04:30]} 13. h3 {[%emt 0:00:30]} h5 {[%emt 0:05:30]} 14. Bf4 {[%emt 0:02:30]} Bc5 {[%emt 0:05:30]} 15. Be3 {[%emt 0:10:30]} Nxe3 {[%emt 0:03:30]} 16. fxe3 {[%emt 0:00:30]} Qg3 {[%emt 0:02:30]} 17. Nd1 {[%emt 0:17:30]} Nxd3 {[%emt 0:07:30]} 18. cxd3 {[%emt 0:02:30]} Bd6 {[%emt 0:01:30]} 19. Qf3 {[%emt 0:00:00]} Qh2+ {[%emt 0:02:30]} 20. Kf2 {[%emt 0:00:00]} Rh6 {[%emt 0:00:30]} 21. e5 {[%emt 0:03:12]} Rb8 {[%emt 0:04:30]} 22. Ke2 {[%emt 0:01:14]} Qxe5 {[%emt 0:01:30]} 23. Qxf7+ {[%emt 0:00:10]} Kd8 {[%emt 0:02:30]} 24. Rc1 {[%emt 0:04:26]} Rf6 {[%emt 0:01:30]} 25. Rxf6 {[%emt 0:01:24]} Qxf6 {[%emt 0:02:30]} 26. Qxh5 {[%emt 0:00:13]} Bf8 {[%emt 0:04:30]} 27. Qf3 {[%emt 0:03:49]} Qxf3+ {[%emt 0:04:30]} 28. Kxf3 {[%emt 0:01:45]} b4 {[%emt 0:00:30]} 29. axb4 {[%emt 0:01:36]} Bxb4 {[%emt 0:01:30]} 30. Nc4 {[%emt 0:00:16]} Bb7+ {[%emt 0:02:30]} 31. e4 {[%emt 0:00:12]} Ke7 {[%emt 0:01:30]} 32. Ne5 {[%emt 0:00:46]} Rf8+ {[%emt 0:03:30]} 33. Ke3 {[%emt 0:01:04]} Kd8 {[%emt 0:00:30]} 34. Nf3 {[%emt 0:02:27]} d5 {[%emt 0:02:30]} 35. Nd4 {[%emt 0:01:20]} Kd7 {[%emt 0:01:30]} 36. Nf2 {[%emt 0:00:44]} e5 {[%emt 0:01:30]} 37. Nf3 {[%emt 0:00:18]} d4+ {[%emt 0:01:30]} 38. Ke2 {[%emt 0:00:02]} Bd6 {[%emt 0:01:42]} 39. Ng4 {[%emt 0:00:17]} Re8 {[%emt 0:00:52]} 40. Nh4 {[%emt 0:00:43]} Bb8 {[%emt 0:04:30]} 41. Nf5 {[%emt 0:00:43]} Rg8 {[%emt 0:01:52]} 42. Nh4 {[%emt 0:00:35]} Ke6 {[%emt 0:01:15]} 43. Nf3 {[%emt 0:00:41]} Bd6 {[%emt 0:01:16]} 44. Ng5+ {[%emt 0:00:32]} Kd7 {[%emt 0:00:58]} 45. Rf1 {[%emt 0:00:15]} Kc6 {[%emt 0:01:04]} 46. Rf7 {[%emt 0:01:13]} Bc8 {[%emt 0:00:44]} 47. Nf2 {[%emt 0:01:06]} Bd7 {[%emt 0:00:45]} 48. Nd1 {[%emt 0:01:19]} Bc7 {[%emt 0:00:51]} 49. Rf2 {[%emt 0:01:18]} a5 {[%emt 0:01:02]} 50. Kd2 {[%emt 0:00:11]} a4 {[%emt 0:00:48]} 51. Kc1 {[%emt 0:00:18]} Bd8 {[%emt 0:01:07]} 52. Nf3 {[%emt 0:00:22]} Kd6 {[%emt 0:00:26]} 53. Rc2 {[%emt 0:00:54]} g5 {[%emt 0:01:21]} 54. Nf2 {[%emt 0:00:16]} Be6 {[%emt 0:00:41]} 55. Ng4 {[%emt 0:00:37]} Bb3 {[%emt 0:00:54]} 56. Rc8 {[%emt 0:00:42]} Be6 {[%emt 0:00:42]} 57. Ra8 {[%emt 0:00:30]} Bb3 {[%emt 0:01:52]} 58. Nfxe5 {[%emt 0:01:09]} Rf8 {[%emt 0:01:04]} 59. Nf3 {[%emt 0:00:06]} Kc5 {[%emt 0:00:52]} 60. Rc8+ {[%emt 0:00:24]} Kb6 {[%emt 0:00:29]} 61. Rb8+ {[%emt 0:00:14]} Ka7 {[%emt 0:00:20]} 62. Rb4 {[%emt 0:00:19]} Ba5 {[%emt 0:01:01]} 63. Rxd4 {[%emt 0:01:25]} Rc8+ {[%emt 0:00:13]} 64. Kb1 {[%emt 0:00:00]} Rc2 {[%emt 0:00:21]} 65. Rd7+ {[%emt 0:00:54]} Kb6 {[%emt 0:00:47]} 66. Rd6+ {[%emt 0:00:19]} Kc7 {[%emt 0:00:42]} 67. Rg6 {[%emt 0:00:21]} Rxg2 {[%emt 0:00:36]} 68. Rg7+ {[%emt 0:00:53]} Kb6 {[%emt 0:01:01]} 69. Rg6+ {[%emt 0:00:01]} Kc5 {[%emt 0:00:54]} 70. Rxg5+ {[%emt 0:00:30]} Kb4 {[%emt 0:01:53]} 71. Ne3 {[%emt 0:00:05]} Rf2 {[%emt 0:00:45]} 72. Nd4 {[%emt 0:00:21]} Rxb2+ {[%emt 0:01:15]} 73. Kxb2 {[%emt 0:00:36]} a3+ {[%emt 0:00:05]} 74. Ka1 {[%emt 0:00:25]} Ba4 {[%emt 0:00:22]} 75. Ndc2+ {[%emt 0:01:12]} 1-0

[Event "Turkish Club Cup 2019"]
[Site "Konya"]
[Date "2019.07.16"]
[Round "1"]
[White "Erdem, Eren"]
[Black "Toren, Kadir"]
[Result "0-1"]
[ECO "D06"]
[WhiteElo "1448"]
[BlackElo "1736"]
[Annotator "NA"]
[PlyCount "124"]
[EventDate "2019.07.16"]
[EventType "team-tourn"]
[EventCountry "TUR"]
[SourceTitle "playchess.com"]
[Source "ChessBase"]
[SourceQuality "1"]
[TimeControl "5400+30"]

1. d4 {[%emt 0:00:30]} d5 {[%emt 0:00:30]} 2. c4 {[%emt 0:00:30]} Bf5 {[%emt 0:00:30]} 3. Qb3 {[%emt 0:02:30]} b6 {[%emt 0:06:30]} 4. cxd5 {[%emt 0:02:30]} Bxb1 {[%emt 0:00:30]} 5. Rxb1 {[%emt 0:00:30]} Nf6 {[%emt 0:00:00]} 6. Nf3 {[%emt 0:13:30]} Qxd5 {[%emt 0:01:00]} 7. Qxd5 {[%emt 0:01:30]} Nxd5 {[%emt 0:00:30]} 8. e4 {[%emt 0:00:30]} Nf6 {[%emt 0:00:30]} 9. e5 {[%emt 0:09:30]} Nd5 {[%emt 0:03:30]} 10. Bc4 {[%emt 0:02:30]} e6 {[%emt 0:01:30]} 11. Bxd5 {[%emt 0:03:30]} exd5 {[%emt 0:00:00]} 12. O-O {[%emt 0:01:30]} Be7 {[%emt 0:02:00]} 13. Bf4 {[%emt 0:06:30]} O-O {[%emt 0:05:30]} 14. Rfd1 {[%emt 0:02:30]} Na6 {[%emt 0:06:30]} 15. Rbc1 {[%emt 0:01:30]} Rac8 {[%emt 0:01:30]} 16. a3 {[%emt 0:04:30]} Rfd8 {[%emt 0:01:30]} 17. Rc3 {[%emt 0:15:30]} c5 {[%emt 0:03:30]} 18. Rdc1 {[%emt 0:01:30]} Nc7 {[%emt 0:07:30]} 19. dxc5 {[%emt 0:04:30]} bxc5 {[%emt 0:00:30]} 20. Nd4 {[%emt 0:02:30]} Ne6 {[%emt 0:03:30]} 21. Nf5 {[%emt 0:03:40]} Bf8 {[%emt 0:00:30]} 22. Bg3 {[%emt 0:01:24]} g6 {[%emt 0:05:30]} 23. Nd6 {[%emt 0:01:36]} Rb8 {[%emt 0:00:30]} 24. Rb1 {[%emt 0:02:18]} a5 {[%emt 0:01:30]} 25. a4 {[%emt 0:03:19]} Rb4 {[%emt 0:01:30]} 26. b3 {[%emt 0:00:46]} Rdb8 {[%emt 0:02:30]} 27. Nb5 {[%emt 0:02:35]} c4 {[%emt 0:01:30]} 28. f3 {[%emt 0:00:50]} cxb3 {[%emt 0:02:30]} 29. Rcxb3 {[%emt 0:01:16]} Rxa4 {[%emt 0:01:30]} 30. Nc3 {[%emt 0:00:41]} Rab4 {[%emt 0:02:30]} 31. Rxb4 {[%emt 0:00:58]} Bxb4 {[%emt 0:00:30]} 32. Kf1 {[%emt 0:01:14]} d4 {[%emt 0:01:30]} 33. Nd5 {[%emt 0:00:31]} Rb5 {[%emt 0:00:00]} 34. Ne7+ {[%emt 0:00:07]} Kf8 {[%emt 0:00:00]} 35. Nc6 {[%emt 0:00:03]} Rb6 {[%emt 0:00:30]} 36. Nxb4 {[%emt 0:00:57]} axb4 {[%emt 0:01:30]} 37. Ke2 {[%emt 0:00:38]} Ke7 {[%emt 0:02:30]} 38. Kd3 {[%emt 0:00:18]} b3 {[%emt 0:00:30]} 39. Kc4 {[%emt 0:01:43]} b2 {[%emt 0:03:30]} 40. Kd3 {[%emt 0:05:09]} Kd7 {[%emt 0:01:30]} 41. Kc2 {[%emt 0:00:16]} Kc6 {[%emt 0:00:00]} 42. Rxb2 {[%emt 0:00:46]} Rxb2+ {[%emt 0:00:00]} 43. Kxb2 {[%emt 0:00:08]} Kd5 {[%emt 0:00:30]} 44. Kc2 {[%emt 0:00:35]} Kc4 {[%emt 0:00:00]} 45. Bf2 {[%emt 0:00:28]} Nc5 {[%emt 0:02:00]} 46. g4 {[%emt 0:00:46]} d3+ {[%emt 0:03:30]} 47. Kd1 {[%emt 0:00:19]} Nb3 {[%emt 0:00:30]} 48. h4 {[%emt 0:01:41]} h5 {[%emt 0:04:30]} 49. g5 {[%emt 0:00:47]} Kd5 {[%emt 0:02:30]} 50. Bg3 {[%emt 0:00:19]} Kd4 {[%emt 0:01:30]} 51. Bf4 {[%emt 0:00:11]} Na5 {[%emt 0:00:30]} 52. Bg3 {[%emt 0:01:04]} Ke3 {[%emt 0:00:30]} 53. f4 {[%emt 0:00:32]} Nc4 {[%emt 0:00:30]} 54. f5 Nb2+ {[%emt 0:00:00]} 55. Kc1 {[%emt 0:00:42]} d2+ {[%emt 0:01:00]} 56. Kxb2 {[%emt 0:00:00]} d1=Q {[%emt 0:00:30]} 57. e6 {[%emt 0:00:34]} Qd4+ {[%emt 0:00:30]} 58. Kc1 {[%emt 0:00:22]} fxe6 {[%emt 0:00:30]} 59. fxg6 {[%emt 0:00:27]} Kd3 {[%emt 0:00:30]} 60. Kb1 {[%emt 0:00:10]} Kc3 {[%emt 0:00:30]} 61. Be1+ {[%emt 0:00:52]} Kb3 {[%emt 0:00:00]} 62. Kc1 {[%emt 0:00:12]} Qd3 {[%emt 0:00:00]} 0-1

[Event "Turkish Club Cup 2019"]
[Site "Konya"]
[Date "2019.07.16"]
[Round "1"]
[White "Aslan, Deniz Cihan"]
[Black "Caputcuoglu, Zeki Berke"]
[Result "0-1"]
[ECO "A45"]
[WhiteElo "1360"]
[BlackElo "2010"]
[Annotator "NA"]
[PlyCount "42"]
[EventDate "2019.07.16"]
[EventType "team-tourn"]
[EventCountry "TUR"]
[SourceTitle "playchess.com"]
[Source "ChessBase"]
[SourceQuality "1"]
[TimeControl "5400+30"]

1. d4 {[%emt 0:00:30]} Nf6 {[%emt 0:00:30]} 2. Bf4 {[%emt 0:00:00]} g6 {[%emt 0:00:30]} 3. Nc3 {[%emt 0:00:00]} d5 {[%emt 0:00:30]} 4. Qd2 {[%emt 0:00:30]} Bg7 {[%emt 0:00:30]} 5. f3 {[%emt 0:00:30]} O-O {[%emt 0:01:30]} 6. O-O-O {[%emt 0:00:30]} c5 {[%emt 0:07:30]} 7. dxc5 {[%emt 0:01:30]} Qa5 {[%emt 0:00:30]} 8. a3 {[%emt 0:21:30]} Qxc5 {[%emt 0:11:30]} 9. Be3 {[%emt 0:03:30]} Qc7 {[%emt 0:01:30]} 10. Nxd5 {[%emt 0:08:30]} Nxd5 {[%emt 0:00:30]} 11. Qxd5 {[%emt 0:00:30]} Nc6 {[%emt 0:00:30]} 12. Qc5 {[%emt 0:05:30]} b6 {[%emt 0:00:30]} 13. Qc4 {[%emt 0:01:30]} Be6 {[%emt 0:09:30]} 14. Qb5 {[%emt 0:03:30]} Rac8 {[%emt 0:00:30]} 15. c3 {[%emt 0:00:30]} Na5 {[%emt 0:03:30]} 16. Qb4 {[%emt 0:02:30]} Nb3+ {[%emt 0:03:30]} 17. Kc2 {[%emt 0:01:30]} a5 {[%emt 0:14:30]} 18. Qxb6 {[%emt 0:01:30]} Qc4 {[%emt 0:01:30]} 19. Bf2 {[%emt 0:00:30]} Rb8 {[%emt 0:08:30]} 20. e4 {[%emt 0:02:30]} Qa4 {[%emt 0:00:00]} 21. Qxb8 {[%emt 0:00:00]} Rxb8 {[%emt 0:01:00]} 0-1

[Event "Turkish Club Cup 2019"]
[Site "Konya"]
[Date "2019.07.16"]
[Round "1"]
[White "Maden, Dogac Fevzi"]
[Black "Guner, Sati Emre"]
[Result "0-1"]
[ECO "D02"]
[WhiteElo "1357"]
[BlackElo "1912"]
[Annotator "NA"]
[PlyCount "90"]
[EventDate "2019.07.16"]
[EventType "team-tourn"]
[EventCountry "TUR"]
[SourceTitle "playchess.com"]
[Source "ChessBase"]
[SourceQuality "1"]
[TimeControl "5400+30"]

1. d4 {[%emt 0:00:30]} d5 {[%emt 0:00:30]} 2. Nf3 {[%emt 0:00:00]} Nf6 {[%emt 0:00:00]} 3. Bf4 {[%emt 0:00:00]} c5 {[%emt 0:01:00]} 4. c3 {[%emt 0:02:30]} Nc6 {[%emt 0:00:30]} 5. e3 {[%emt 0:00:30]} Qb6 {[%emt 0:00:30]} 6. Qc2 {[%emt 0:00:30]} Bg4 {[%emt 0:01:30]} 7. Nbd2 {[%emt 0:01:30]} e6 {[%emt 0:00:30]} 8. h3 {[%emt 0:00:30]} Bf5 {[%emt 0:00:30]} 9. Qb3 {[%emt 0:00:30]} c4 {[%emt 0:04:30]} 10. Qxb6 {[%emt 0:01:30]} axb6 {[%emt 0:00:30]} 11. Be2 {[%emt 0:10:30]} b5 {[%emt 0:00:30]} 12. Nh4 {[%emt 0:02:30]} Be4 {[%emt 0:00:30]} 13. f3 {[%emt 0:00:30]} Bd3 {[%emt 0:01:30]} 14. Bxd3 {[%emt 0:02:30]} cxd3 {[%emt 0:00:30]} 15. g4 {[%emt 0:00:00]} Nd7 {[%emt 0:00:30]} 16. e4 {[%emt 0:04:00]} Be7 {[%emt 0:01:30]} 17. Ng2 {[%emt 0:01:30]} O-O {[%emt 0:00:30]} 18. O-O {[%emt 0:00:30]} b4 {[%emt 0:01:30]} 19. Ne1 {[%emt 0:02:30]} bxc3 {[%emt 0:03:30]} 20. bxc3 {[%emt 0:00:30]} dxe4 {[%emt 0:01:30]} 21. fxe4 {[%emt 0:05:30]} e5 {[%emt 0:01:30]} 22. dxe5 {[%emt 0:10:30]} Ndxe5 {[%emt 0:00:30]} 23. Ndf3 {[%emt 0:02:30]} Bf6 {[%emt 0:10:30]} 24. Nxe5 {[%emt 0:02:30]} Bxe5 {[%emt 0:00:00]} 25. Bxe5 {[%emt 0:01:30]} Nxe5 {[%emt 0:00:00]} 26. Rd1 {[%emt 0:21:30]} Rfd8 {[%emt 0:00:30]} 27. Nf3 {[%emt 0:00:30]} Nc4 {[%emt 0:02:30]} 28. Rf2 {[%emt 0:01:30]} Ra3 {[%emt 0:00:30]} 29. Nd2 {[%emt 0:15:41]} Ne5 {[%emt 0:06:30]} 30. Nb3 {[%emt 0:00:53]} Rc8 {[%emt 0:01:30]} 31. Rc1 {[%emt 0:00:46]} Ra4 {[%emt 0:00:30]} 32. Nd2 {[%emt 0:06:41]} Rxa2 {[%emt 0:00:30]} 33. Nf3 {[%emt 0:00:23]} Rxf2 {[%emt 0:03:30]} 34. Kxf2 {[%emt 0:00:02]} Nxf3 {[%emt 0:00:30]} 35. Kxf3 {[%emt 0:00:30]} d2 {[%emt 0:00:30]} 36. Rd1 {[%emt 0:00:00]} Rxc3+ {[%emt 0:00:30]} 37. Kg2 {[%emt 0:00:00]} Rd3 {[%emt 0:00:00]} 38. h4 {[%emt 0:00:59]} Kf8 {[%emt 0:00:00]} 39. Kf2 {[%emt 0:00:10]} Ke7 {[%emt 0:00:30]} 40. Ke2 {[%emt 0:01:53]} Rd7 {[%emt 0:00:30]} 41. g5 {[%emt 0:00:47]} Ke6 {[%emt 0:00:00]} 42. h5 {[%emt 0:00:40]} Ke5 {[%emt 0:00:00]} 43. Ke3 {[%emt 0:00:00]} b5 {[%emt 0:00:30]} 44. Rxd2 {[%emt 0:01:07]} Rxd2 {[%emt 0:00:30]} 45. Kxd2 {[%emt 0:00:30]} Kxe4 {[%emt 0:00:00]} 0-1

[Event "Turkish Club Cup 2019"]
[Site "Konya"]
[Date "2019.07.16"]
[Round "1"]
[White "Cankurtaran, Merve"]
[Black "Yazici, Betul"]
[Result "0-1"]
[ECO "D05"]
[WhiteElo "1335"]
[BlackElo "1267"]
[Annotator "NA"]
[PlyCount "64"]
[EventDate "2019.07.16"]
[EventType "team-tourn"]
[EventCountry "TUR"]
[SourceTitle "playchess.com"]
[Source "ChessBase"]
[SourceQuality "1"]
[TimeControl "5400+30"]

1. d4 {[%emt 0:00:30]} Nf6 {[%emt 0:00:30]} 2. Nf3 {[%emt 0:00:30]} d5 {[%emt 0:00:00]} 3. c3 {[%emt 0:00:30]} e6 {[%emt 0:01:00]} 4. e3 {[%emt 0:00:30]} Nbd7 {[%emt 0:01:30]} 5. Bd3 {[%emt 0:01:30]} c5 {[%emt 0:09:30]} 6. Nbd2 {[%emt 0:02:30]} Nb6 {[%emt 0:02:30]} 7. O-O {[%emt 0:07:30]} Be7 {[%emt 0:09:30]} 8. Ne5 {[%emt 0:03:30]} Nbd7 {[%emt 0:08:30]} 9. f4 {[%emt 0:03:30]} Nxe5 {[%emt 0:11:30]} 10. fxe5 {[%emt 0:00:30]} Nd7 {[%emt 0:00:30]} 11. Qh5 {[%emt 0:22:30]} g6 {[%emt 0:02:30]} 12. Qf3 {[%emt 0:04:30]} O-O {[%emt 0:01:30]} 13. e4 {[%emt 0:01:30]} Nb6 {[%emt 0:06:30]} 14. Kh1 {[%emt 0:07:30]} cxd4 {[%emt 0:04:30]} 15. cxd4 {[%emt 0:06:30]} f6 {[%emt 0:01:30]} 16. Qe2 {[%emt 0:07:30]} fxe5 {[%emt 0:06:30]} 17. Rxf8+ {[%emt 0:01:30]} Bxf8 {[%emt 0:03:30]} 18. dxe5 {[%emt 0:01:30]} Bg7 {[%emt 0:02:30]} 19. Nf3 {[%emt 0:01:30]} dxe4 {[%emt 0:11:19]} 20. Qxe4 {[%emt 0:02:30]} Qd5 {[%emt 0:02:05]} 21. Bf4 {[%emt 0:03:12]} Bd7 {[%emt 0:01:42]} 22. Qe2 {[%emt 0:01:18]} Bc6 {[%emt 0:01:28]} 23. Bg5 {[%emt 0:02:32]} h6 {[%emt 0:02:21]} 24. Bxg6 {[%emt 0:04:30]} hxg5 {[%emt 0:02:03]} 25. Nxg5 {[%emt 0:00:13]} Rd8 {[%emt 0:01:10]} 26. Bf7+ {[%emt 0:00:55]} Kf8 {[%emt 0:00:58]} 27. Bxe6 {[%emt 0:01:43]} Qxe5 {[%emt 0:01:49]} 28. Rf1+ {[%emt 0:09:44]} Ke7 {[%emt 0:03:34]} 29. Qg4 {[%emt 0:01:33]} Rd2 {[%emt 0:01:11]} 30. Qb4+ {[%emt 0:00:42]} Rd6 {[%emt 0:00:40]} 31. Rf7+ {[%emt 0:00:34]} Ke8 {[%emt 0:00:28]} 32. h3 {[%emt 0:01:02]} Rd1+ {[%emt 0:00:11]} 0-1

[Event "Turkish Club Cup 2019"]
[Site "Konya"]
[Date "2019.07.16"]
[Round "1"]
[White "Sahin, Zeynep Gokce"]
[Black "Kiziltas, Ece Su"]
[Result "0-1"]
[ECO "B08"]
[WhiteElo "1332"]
[BlackElo "1400"]
[Annotator "NA"]
[PlyCount "80"]
[EventDate "2019.07.16"]
[EventType "team-tourn"]
[EventCountry "TUR"]
[SourceTitle "playchess.com"]
[Source "ChessBase"]
[SourceQuality "1"]
[TimeControl "5400+30"]

1. e4 {[%emt 0:00:30]} g6 {[%emt 0:00:30]} 2. d4 {[%emt 0:00:30]} Bg7 {[%emt 0:00:00]} 3. Nf3 {[%emt 0:00:00]} d6 {[%emt 0:00:00]} 4. Be3 {[%emt 0:01:00]} Nc6 {[%emt 0:01:30]} 5. h3 {[%emt 0:01:30]} Nf6 {[%emt 0:00:30]} 6. Nc3 {[%emt 0:00:30]} O-O {[%emt 0:00:30]} 7. Bc4 {[%emt 0:01:30]} e5 {[%emt 0:01:30]} 8. dxe5 {[%emt 0:00:30]} Nxe5 {[%emt 0:00:30]} 9. Nxe5 {[%emt 0:00:30]} dxe5 {[%emt 0:00:30]} 10. O-O {[%emt 0:00:00]} Qe7 {[%emt 0:03:30]} 11. f3 {[%emt 0:02:00]} Rd8 {[%emt 0:04:30]} 12. Qe2 {[%emt 0:00:00]} Be6 {[%emt 0:03:30]} 13. Rfd1 {[%emt 0:01:00]} a6 {[%emt 0:02:30]} 14. Bg5 {[%emt 0:03:30]} Qc5+ {[%emt 0:01:30]} 15. Be3 {[%emt 0:05:30]} Qxc4 {[%emt 0:03:30]} 16. Qf2 {[%emt 0:04:30]} Qc6 {[%emt 0:04:30]} 17. Rd2 {[%emt 0:01:30]} Rxd2 {[%emt 0:02:30]} 18. Qxd2 {[%emt 0:00:30]} Qd7 {[%emt 0:00:30]} 19. Rd1 {[%emt 0:01:30]} Rd8 {[%emt 0:00:30]} 20. Qe2 {[%emt 0:05:30]} Qe7 {[%emt 0:02:30]} 21. Nd5 {[%emt 0:03:30]} Nxd5 {[%emt 0:03:30]} 22. exd5 {[%emt 0:00:30]} Rxd5 {[%emt 0:02:30]} 23. Re1 {[%emt 0:04:30]} Qb4 {[%emt 0:05:30]} 24. c3 {[%emt 0:00:30]} Qe7 {[%emt 0:01:30]} 25. c4 {[%emt 0:03:30]} Rd7 {[%emt 0:00:30]} 26. b3 {[%emt 0:01:30]} Qd6 {[%emt 0:02:30]} 27. Bc1 {[%emt 0:03:30]} Qd3 {[%emt 0:03:30]} 28. Bb2 {[%emt 0:00:30]} Qxe2 {[%emt 0:01:30]} 29. Rxe2 {[%emt 0:00:30]} f6 {[%emt 0:00:30]} 30. f4 {[%emt 0:00:30]} Kf7 {[%emt 0:01:30]} 31. fxe5 {[%emt 0:00:30]} fxe5 {[%emt 0:00:30]} 32. Bxe5 {[%emt 0:00:30]} Bxe5 {[%emt 0:00:30]} 33. Rxe5 {[%emt 0:00:00]} Rd2 {[%emt 0:00:30]} 34. a3 {[%emt 0:00:00]} Rd3 {[%emt 0:00:30]} 35. b4 {[%emt 0:01:30]} Rxa3 {[%emt 0:00:30]} 36. Re4 {[%emt 0:00:30]} a5 {[%emt 0:00:30]} 37. c5 {[%emt 0:01:30]} Ra1+ {[%emt 0:01:30]} 38. Kf2 {[%emt 0:00:30]} a4 {[%emt 0:00:00]} 39. b5 {[%emt 0:01:30]} a3 {[%emt 0:00:00]} 40. Ra4 {[%emt 0:00:30]} a2 {[%emt 0:00:30]} 0-1